Cogmind - Beta 13 @@@ ROGUE MODE // 2024.03.10 @ 00:49:28 Player: ody Result: Destroyed by Y-45 Defender with Heavy Assault Rifle Performance ------------- Evolutions (1) 500 Regions Visited (2) 400 Robots Destroyed (22) 110 Value Destroyed (595) 595 Prototype IDs (0) 0 Alien Tech Used (0) 0 Bonus (0) 0 TOTAL SCORE: 1605 Bonus ------- None Cogmind --------- Core Integrity 0/400 Matter 489/500 Energy 259/265 System Corruption 0% Temperature Cool (12) Movement Walking (260) Ox2 Location -9/Materials Parts ------- > --- POWER (2) -------- Improved Ion Engine > --- PROPULSION (3) --- Aluminum Leg Aluminum Leg Improved Aluminum Leg > --- UTILITY (2) ------ Huge Storage Unit High-capacity Matter Pod > --- WEAPON (2) ------- Mini Grenade Launcher > --- INVENTORY (25) --- Huge Storage Unit Huge Storage Unit Sensor Array Improved Targeting Computer Core Shielding Hardened Light Armor Plating Hardened Light Armor Plating Peak State ------------ > --- POWER ------------ Ion Engine Light Ion Engine > --- PROPULSION ------- Light Treads Light Treads > --- UTILITY ---------- Huge Storage Unit High-capacity Matter Pod > --- WEAPON ----------- Light Assault Rifle Heavy Assault Rifle > --- INVENTORY -------- Light Ion Engine Light Ion Engine Improved Ion Engine Improved Aluminum Leg Huge Storage Unit Huge Storage Unit Sensor Array Improved Targeting Computer Core Shielding Hardened Light Armor Plating Hardened Light Armor Plating Small Laser Light Assault Rifle Mini Grenade Launcher [Rating: 11] Favorites ----------- Power Light Ion Engine Engine Light Ion Engine Propulsion Light Treads Treads Light Treads Leg Aluminum Leg Utility High-capacity Matter Pod Storage High-capacity Matter Pod Weapon Small Laser Energy Gun Small Laser Ballistic Gun Light Assault Rifle Launcher Mini Grenade Launcher Build | -11 -10 -9 ------- Run | Yrd Mat Mat Slots Evolved 2 | . . 2 Power 1 | . . 1 Propulsion 1 | . . 1 Utility . | . . . Weapon . | . . . Parts Attached 23 | 6 3 14 Power 6 | 1 . 5 Engine 6 | 1 . 5 Core . | . . . Reactor . | . . . Propulsion 5 | 2 . 3 Treads 2 | 2 . . Leg 3 | . . 3 Wheel . | . . . Hover . | . . . Flight . | . . . Utility 4 | 1 3 . Device . | . . . Storage 4 | 1 3 . Processor . | . . . Hackware . | . . . Protection . | . . . Artifact . | . . . Weapon 8 | 2 . 6 Energy Gun 3 | 1 . 2 Energy Cannon . | . . . Ballistic Gun 3 | 1 . 2 Ballistic Cannon . | . . . Launcher 2 | . . 2 Special Weapon . | . . . Impact Weapon . | . . . Slashing Weapon . | . . . Piercing Weapon . | . . . Special Melee Weapon . | . . . Unidentified Prototypes . | . . . Parts Lost 12 | . . 12 Power 5 | . . 5 Propulsion 2 | . . 2 Utility . | . . . Weapon 5 | . . 5 Highest Loss Streak 5 | . . 5 To Critical Strikes . | . . . Average Slot Usage (%) 86 | . 99 75 Engine 14 | . 14 15 Treads 19 | . 28 12 Leg 2 | . . 5 Storage 24 | . 27 22 Energy Gun 11 | . 14 9 Ballistic Gun 10 | . 14 7 Launcher 2 | . . 3 Naked Turns . | . . . Heaviest Build 96 | 10 89 96 Greatest Support 40 | 40 40 40 Greatest Overweight (x) 30 | 1 2 30 Average Overweight (x) 2 | . 1 3 Largest Inventory Capacity 25 | 8 25 25 Average Capacity 23 | 7 22 25 Most Carried 15 | 6 6 15 Average Carried 6 | 2 4 9 Final Capacity 25 | 8 25 25 Final Carried 7 | 1 6 7 Class Distribution -------------------- 100% | Mutant Dominant Class ---------------- Mutant | -10/Materials Mutant | -9/Materials Resources | -11 -10 -9 ----------- Run | Yrd Mat Mat Matter Collected 722 | 199 304 219 Remotely . | . . . Salvage Created 587 | . 76 511 Parts 42 | . 8 34 Haulers Intercepted . | . . . Recyclers Shooed 1 | . 1 . Parts Field Recycled . | . . . Retrieved Matter . | . . . Parts Self-Destructed . | . . . Prevented . | . . . Kills | -11 -10 -9 ------- Run | Yrd Mat Mat Combat Hostiles Destroyed 16 | . 1 15 Guns 10 | . 1 9 AOE 6 | . . 6 Classes Destroyed 5 | . 2 3 Worker 1 | . . 1 Operator 1 | . . 1 Watcher 4 | . 2 2 Swarmer 4 | . . 4 Grunt 12 | . 1 11 Best Kill Streak 5 | . 1 5 Combat Bots Only 5 | . 1 5 Max Kills in Single Turn 3 | . 1 3 Gunslinging . | . . . Exploded 2 | . . 2 Melee . | . . . Uniques/NPCs Destroyed . | . . . Combat | -11 -10 -9 -------- Run | Yrd Mat Mat Hostile Shots Fired 166 | . 6 160 Missed 34 | . . 34 Damage Taken 1511 | . 68 1443 Core 424 | . 12 412 Absorbed by Shields . | . . . Core Remaining (%) 97 | 100 95 . Volleys Fired 66 | . 13 53 Largest 2 | . 2 2 Hottest 80 | . 60 80 Shots Fired 121 | . 26 95 Gun 114 | . 26 88 Cannon . | . . . Launcher 7 | . . 7 Special . | . . . Kinetic 72 | . 13 59 Thermal 42 | . 13 29 Explosive 7 | . . 7 Electromagnetic . | . . . Robot Hit Streak 7 | . 5 7 Robot Miss Streak 4 | . 2 4 Penetration Max . | . . . Secondary Targets 2 | . . 2 Max Gunslinging Chain 1 | . . 1 Shots Hit Robots 65 | . 14 51 Core Hits 45 | . 6 39 Critical Kills . | . . . Critical Parts Destroyed 1 | . . 1 Critical Strikes 1 | . . 1 Destroy 1 | . . 1 Melee Attacks . | . . . Impact . | . . . Slashing . | . . . Piercing . | . . . Sneak Attacks . | . . . Combat Hostiles . | . . . Follow-up Attacks . | . . . Damage Inflicted 1322 | . 151 1171 Guns 628 | . 143 485 Cannons . | . . . Explosions 686 | . . 686 Melee . | . . . Ramming 8 | . 8 . Kinetic 397 | . 67 330 Thermal 231 | . 76 155 Explosive 686 | . . 686 Electromagnetic . | . . . Impact . | . . . Slashing . | . . . Piercing . | . . . Highest Corruption 1 | . 1 . Average Corruption 1 | . 1 . Corruption Purged . | . . . Corruption Blocked . | . . . Effects 2 | . 2 . Data Loss (minor) 2 | . 2 . Overload Shots . | . . . Overflow Damage 25 | . . 25 Projectiles . | . . . Explosions 25 | . . 25 Melee . | . . . Knockbacks . | . . . Impact . | . . . Kinetic . | . . . Secondary . | . . . Self-Inflicted Damage . | . . . Shots . | . . . Rammed 1 | . 1 . Targets Rammed 1 | . 1 . Kicked . | . . . Crushed . | . . . Highest Temperature 212 | . 64 212 Average Temperature 51 | . 23 60 Received Heat Transfer 804 | . 36 768 Effects 1 | . . 1 Interference 1 | . . 1 Siege Activations . | . . . Robots Corrupted . | . . . Combat Hostiles . | . . . Parts Fried . | . . . Impact Corruptions . | . . . Robots Melted . | . . . Combat Hostiles . | . . . Parts Melted 1 | . . 1 Heat Transferred 525 | . 175 350 Parts Sabotaged . | . . . Parts Stolen . | . . . Parts Stripped . | . . . Power Chain Reactions . | . . . Alert | -11 -10 -9 ------- Run | Yrd Mat Mat Peak Influence 242 | . 71 242 Initial . | . . . Average 53 | . 14 90 Maximum Alert Level 1 | . . 1 Low Security (%) 97 | 100 100 95 Level 1 2 | . . 4 Level 2 . | . . . Level 3 . | . . . Level 4 . | . . . Level 5 . | . . . High Security . | . . . Max Security . | . . . Squads Dispatched 5 | . 3 2 Investigation 2 | . 2 . Extermination . | . . . Reinforcement 3 | . 1 2 Assault . | . . . Garrison . | . . . Intercept . | . . . Searches Triggered . | . . . Construction Impeded . | . . . Haulers Reinforced . | . . . Active Scanning Responses . | . . . Cargo Convoy Interrupts . | . . . Stealth | -11 -10 -9 --------- Run | Yrd Mat Mat Distress Signals 5 | . 3 2 Communications Jammed . | . . . Distress Signals . | . . . Times Spotted 38 | . 9 29 Peak Tracking Total 8 | . 1 8 Tactical Retreats 2 | . 1 1 Traps | -11 -10 -9 ------- Run | Yrd Mat Mat Traps Triggered 2 | . 2 . Indirectly . | . . . Trap Hack Attempts . | . . . Triggered . | . . . Disarmed . | . . . Reprogrammed . | . . . Reused . | . . . Traps Extracted . | . . . Installed . | . . . Triggered . | . . . Machines | -11 -10 -9 ---------- Run | Yrd Mat Mat Machines Disabled 4 | . . 4 Max in Single Turn 2 | . . 2 Machines Repaired . | . . . Machines Dismantled . | . . . Machines Sabotaged . | . . . Overloaded Fab Kills . | . . . Hacking | -11 -10 -9 --------- Run | Yrd Mat Mat Machines Accessed 4 | . 3 1 Terminals 4 | . 3 1 Fabricators . | . . . Repair Stations . | . . . Recycling Units . | . . . Scanalyzers . | . . . Garrison Access . | . . . Total Hacks 11 | . 9 2 Successful 9 | . 8 1 Failed 2 | . 1 1 Catastrophic . | . . . Database Lockouts . | . . . Manual . | . . . Terminals 11 | . 9 2 Fabricators . | . . . Repair Stations . | . . . Recycling Units . | . . . Scanalyzers . | . . . Garrison Access . | . . . Terminal Hacks 9 | . 8 1 Record 7 | . 6 1 Alert Level 2 | . 2 . Fabricator Hacks . | . . . Repair Station Hacks . | . . . Recycling Unit Hacks . | . . . Scanalyzer . | . . . Garrison Access Hacks . | . . . Unauthorized Hacks . | . . . Terminals . | . . . Fabricators . | . . . Repair Stations . | . . . Recycling Units . | . . . Scanalyzers . | . . . Garrison Access . | . . . Data Cores Recovered . | . . . Used . | . . . Hacking Detections 2 | . 1 1 Full Trace Events . | . . . Feedback Events . | . . . Feedback Blocked . | . . . Robot Schematics Acquired . | . . . Robots Built . | . . . Authchips . | . . . Time . | . . . Total Robot Build Rating . | . . . Part Schematics Acquired . | . . . Parts Built . | . . . Authchips . | . . . Time . | . . . Total Part Build Rating . | . . . Parts Repaired . | . . . Time . | . . . Parts Recycled . | . . . Recycled Matter . | . . . Retrieved Matter . | . . . Retrieved Components . | . . . Parts Scanalyzed . | . . . Part Schematics Acquired . | . . . Parts Damaged . | . . . Bothacking | -11 -10 -9 ------------ Run | Yrd Mat Mat Used RIF Installer . | . . . Robots Hacked . | . . . Non-combat . | . . . Combat . | . . . Robot Hacks Applied . | . . . Relay Couplers Released . | . . . Fabnet Peak Effective % . | . . . Robots Rewired . | . . . Allies Hacked . | . . . Hacks Repelled . | . . . Allies | -11 -10 -9 -------- Run | Yrd Mat Mat Total Allies . | . . . Largest Group . | . . . Highest-Rated Group . | . . . Highest-Rated Ally . | . . . Total Orders . | . . . Ally Attacks . | . . . Total Damage . | . . . Kills . | . . . Allies Corrupted . | . . . Allies Melted . | . . . Intel | -11 -10 -9 ------- Run | Yrd Mat Mat Robot Analysis Total . | . . . Derelict Logs Recovered . | . . . Drone Launches . | . . . Drone Recoveries . | . . . Exploration | -11 -10 -9 ------------- Run | Yrd Mat Mat Turns Passed 2538 | 90 1121 1327 Spaces Moved 728 | 67 371 290 Core 49 | 34 . 15 Treads 601 | 33 371 197 Legs 78 | . . 78 Wheels . | . . . Hover . | . . . Flight . | . . . Fastest Speed 50 | 50 160 260 Average Speed 312 | 116 282 395 Slowest Speed 1550 | 160 320 1550 Overloaded Moves . | . . . Propulsion Burnouts . | . . . Robots Hopped . | . . . Cave-ins Triggered . | . . . Exploration Rate (%) 32 | 3 62 31 Regions Visited 2 Branch Regions . Pre-discovered Areas . | . . . Known Exits Taken . | . . . Unknown Exits Taken 2 | 1 1 . Scrap Searched . | . . . Spaces Dug . | . . . Terrain Destroyed 50 | . . 50 Melee . | . . . Projectile . | . . . AOE 50 | . . 50 Terrain Rammed . | . . . Walls Destroyed . | . . . Machines Disabled . | . . . Actions | -11 -10 -9 --------- Run | Yrd Mat Mat Total 889 | 79 423 387 Wait 38 | . 22 16 Move 726 | 66 370 290 Hop . | . . . Pick Up 30 | 7 10 13 Fast Attach . | . . . Attach 20 | 6 1 13 Detach 1 | . . 1 Swap 3 | . 2 1 Drop 4 | . 4 . Fire 66 | . 13 53 Melee . | . . . Ram . | . . . Kick . | . . . Crush 1 | . 1 . Escape Stasis . | . . . Rewire . | . . . Trap . | . . . Miscellaneous . | . . . Route ------- -11/Scrapyard -10/Materials -9/Materials (discovered 1 exit: [*Min]) History --------- Turn | Location | Event 2 | -11/Scrapyard | Discovered new exit (range 16) 91 | -11/Scrapyard | Entered Materials 173 | -10/Materials | Met 8R-AWN 308 | -10/Materials | Build established: Mutant 910 | -10/Materials | Discovered new exit (range 10) 1212 | -10/Materials | Entered another Materials area 1212 | -9/Materials | Evolved 2 slots: Power x1, Propulsion x1 1909 | -9/Materials | Discovered new exit (range 15) 1965 | -9/Materials | Core integrity fell below 50% 2008 | -9/Materials | Lost 5 parts (2p2n1w) 2074 | -9/Materials | Core integrity fell below 20% 2119 | -9/Materials | Lost 3 parts (2p1w) 2539 | -9/Materials | Destroyed by Y-45 Defender with Heavy Assault Rifle Last Messages --------------- Matter Pump disabled. G-34 Mercenary destroyed. R-06 Scavenger collects Aluminum Leg. K-01 Serf collects debris. R-06 Scavenger collects Wheel. K-01 Serf collects debris. Acquired 19 matter. U-05 Engineer lays Concrete. K-01 Serf collects debris. U-05 Engineer lays Concrete. U-05 Engineer builds a Wall. U-05 Engineer lays Concrete. K-01 Serf collects debris. U-05 Engineer lays Concrete. K-01 Serf cleans the Electrolysis Chamber. U-05 Engineer lays Concrete. K-01 Serf collects debris. U-05 Engineer lays Concrete. K-01 Serf collects debris. K-01 Serf cleans the Electrolysis Chamber. Map ----- +----------------------------------------------------+ | ?????????????????????????????????????????????????? | | ?????????????????????????????????????????????????? | | ?????????????????????????????????????????????????? | | ?????????????????????????????????????????????????? | | ?????????????????????????????????????????????????? | | ?????????????????????????????????????????????????? | | ?????????????????????????????????????????????????? | | ???????????????????????????????????????????????### | | ???????????????????????????##########????######### | | ???????????????????????????# ###### # | | ???????????????????????????#""" # | | ???????????????????????????#""" # < | | ???????????????????????????#""" # | | ???????????????????????????# # ## # | | ???????????????????????????#""" # ## "|"|" # | | ???????????????????????????#""" + ##""|"|""# | | ???????????????????????????#""" # ########## | | ????????????????????##?????# # #??####### | | ??????????????????###Y?????########## #? ] | | ??????????????????# ?????????????# #? "T" | | ??????????????????# ????????????## ^+ | | ??????????????????+ !!= ???????????# # | | ??????????????????# !=] ?########### k # #?????? | | ??????????????????# != # t #?????? | | ??????????????????+ # k #?????? | | ??????????????????# @ """ "" #?????? | | ??????????????????# "" # """ "" % #?????? | | ??????????????????# "" # """ "" #?????? | | ??????????????????# "T ?# ##?????? | | ??????????????????# "" ?# #??????? | | ??????????????????# "" ??# """ """ #??????? | | ??????????????????# ??# """ """ #??????? | | ??????????????????####???# """ """ #??????? | | ???????????????????????? #??????? | | ??????????????????????? #??????? | | ?????????????????????? #??????? | | ????????????????????? #??????? | | ????????????????????##### #??????? | | ????????????????????????###/######### #??????? | | ??????????????????????????? ????????? #??????? | | ??????????????????????????? ????????? #??????? | | ??????????????????????????? ????????? ????????? | | ?????????????????????????????????????????????????? | | ?????????????????????????????????????????????????? | | ?????????????????????????????????????????????????? | | ?????????????????????????????????????????????????? | | ?????????????????????????????????????????????????? | | ?????????????????????????????????????????????????? | | ?????????????????????????????????????????????????? | | ?????????????????????????????????????????????????? | +----------------------------------------------------+ Best States ------------- Heat Dissipation 28 Energy Generation 15 Energy Capacity 275 Matter Stores 500 Matter Capacity 500 Sight Range 16 Terrain Scan Density 10 Evasion (%) 50 Recoil Reduction 2 Item Schematics ----------------- None Robot Schematics ------------------ None Fabricated ------------ Nothing Alien Tech Used ----------------- None Achievements -------------- None Challenges ------------ None Game ------ Seed ArmoredStasisGenerator Manual? 0 Play Time 00:15:26 Cumulative 7.0 hours Start 2024.03.10 @ 00:35:22 End 2024.03.10 @ 00:49:28 Sessions 1 Manual Loads 0 Difficulty Rogue Special Mode None Game No. 29 Rogue 29 Adventurer 0 Explorer 0 Win Type - Total 0 Types 0/0/0/0/0/0/0/0/0 Lore% 3 Gallery% 12 Achievement% 8 Wizard Run 0 Options --------- Layout 1 ASCII 0 Keyboard 0 Movement Mouse Keybinds 0 Fullscreen 2 Font 24/Smallcaps Map View 25x21 Zoom Use 99% Tactical HUD 0 Map Filters NONE Filters NONE Steam 1 RUN: 90f91eaf-6f37-423a-95b2-543d0f619576